fUSD/lending_fUSD_20250208
["ID","MTS","AMOUNT","RATE_DAILY","PERIOD"]
[352290094,1739029011045,1913.7,9.997e-05,2]
[352290095,1739029012211,1630.2,9.997e-05,2]
[352290096,1739029016035,500.0,9.997e-05,2]
[352290097,1739029018178,506.74,9.997e-05,2]
[352290098,1739029018789,4056.21,9.997e-05,2]
[352290099,1739029018932,1052.39,9.997e-05,2]
[352290100,1739029019886,500.0,9.998e-05,2]
[352290101,1739029020735,2781.91,9.997e-05,2]
[352290102,1739029023086,500.0,9.998e-05,2]
[352290103,1739029025160,2533.6,9.997e-05,2]
[352290104,1739029025800,500.0,9.997e-05,2]
[352290105,1739029026888,1000.0,9.997e-05,2]
[352290107,1739029031049,500.0,9.997e-05,2]
[352290108,1739029031603,500.0,9.998e-05,2]
[352290109,1739029032608,1881.29,9.997e-05,2]
[352290110,1739029034422,1060.05,9.997e-05,2]
[352290111,1739029037279,1050.25,8.219e-05,2]
[352290112,1739029038175,189.63724413,9.997e-05,2]
[352290113,1739029039122,1101.59,9.997e-05,2]
[352290114,1739029040374,500.0,9.998e-05,2]
[352290115,1739029040558,995.24,9.997e-05,2]
[352290116,1739029041140,1797.8,9.997e-05,2]
[352290117,1739029042915,731.51,9.997e-05,2]
[352290118,1739029046011,500.0,9.998e-05,2]
[352290119,1739029047350,215.0377,8.836e-05,2]
[352290120,1739029047789,500.0,9.997e-05,2]
[352290121,1739029049322,1023.7,9.997e-05,2]
[352290122,1739029051200,500.0,9.997e-05,2]
[352290123,1739029051969,500.0,9.997e-05,2]
[352290124,1739029053633,1885.11,9.997e-05,2]
[352290125,1739029054389,500.0,9.998e-05,2]
[352290126,1739029054957,1685.65,9.997e-05,2]
[352290127,1739029054995,816.83,9.997e-05,2]
[352290128,1739029055157,500.0,9.997e-05,2]
[352290129,1739029056489,500.0,9.998e-05,2]
[352290130,1739029060497,562.43,9.997e-05,2]
[352290131,1739029062872,1936.5,9.997e-05,2]
[352290132,1739029062954,574.39,9.997e-05,2]
[352290133,1739029064174,500.0,9.997e-05,2]
[352290134,1739029065127,500.0,9.997e-05,2]
[352290135,1739029066109,500.0,9.997e-05,2]
[352290136,1739029067485,500.0,9.997e-05,2]
[352290137,1739029068344,500.0,9.998e-05,2]
[352290138,1739029069488,507.87768369,9.997e-05,2]
[352290139,1739029078269,1437.22,9.997e-05,2]
[352290140,1739029081559,500.0,9.997e-05,2]
[352290141,1739029083207,6949.27,9.997e-05,2]
[352290142,1739029083569,500.0,9.997e-05,2]
[352290143,1739029083829,1151.72,9.997e-05,2]
[352290144,1739029086908,821.99,9.998e-05,2]
[352290145,1739029092805,699.37,9.997e-05,2]
[352290146,1739029094261,500.0,9.997e-05,2]
[352290147,1739029096057,500.0,9.998e-05,2]
[352290148,1739029099528,500.0,9.997e-05,2]
[352290149,1739029099618,500.0,9.997e-05,2]
[352290150,1739029101559,1126.01,9.997e-05,2]
[352290151,1739029102493,500.0,9.997e-05,2]
[352290152,1739029105432,500.0,9.998e-05,2]
[352290153,1739029109950,909.75,9.997e-05,2]
[352290154,1739029111927,1130.12,9.997e-05,2]
[352290155,1739029112564,658.9,9.997e-05,2]
[352290156,1739029113100,500.0,9.997e-05,2]
[352290157,1739029116420,947.04,9.997e-05,2]
[352290158,1739029117120,500.0,9.997e-05,2]
[352290159,1739029117824,857.76,9.997e-05,2]
[352290160,1739029118403,500.0,9.998e-05,2]
[352290161,1739029120227,1185.79,9.997e-05,2]
[352290162,1739029124343,798.24,9.998e-05,2]
[352290163,1739029125746,723.71,9.997e-05,2]
[352290164,1739029128819,1028.26,9.997e-05,2]
[352290165,1739029131429,500.0,9.997e-05,2]
[352290166,1739029131661,500.0,9.997e-05,2]
[352290167,1739029133086,761.26,9.997e-05,2]
[352290168,1739029133303,500.0,9.998e-05,2]
[352290169,1739029135218,500.0,9.997e-05,2]
[352290170,1739029136177,572.77,9.997e-05,2]
[352290171,1739029138818,1438.32,9.997e-05,2]
[352290172,1739029141086,551.35636716,9.997e-05,2]
[352290173,1739029142919,500.0,9.997e-05,2]
[352290174,1739029145073,604.88,9.997e-05,2]
[352290175,1739029145824,913.49,9.997e-05,2]
[352290176,1739029148712,858.3,9.997e-05,2]
[352290177,1739029148835,2038.9,9.997e-05,2]
[352290178,1739029149839,895.55,9.997e-05,2]
[352290179,1739029154763,1801.57,9.997e-05,2]
[352290180,1739029157127,1078.93,9.997e-05,2]
[352290181,1739029157748,5952.48,9.997e-05,2]
[352290182,1739029160385,835.91,9.997e-05,2]
[352290183,1739029160423,500.0,9.997e-05,2]
[352290184,1739029162389,500.0,9.998e-05,2]
[352290185,1739029164291,197.53,9.393e-05,2]
[352290186,1739029167141,503.89,9.997e-05,2]
[352290187,1739029170703,767.83,9.998e-05,2]
[352290188,1739029170737,766.02,9.997e-05,2]
[352290189,1739029177697,500.0,9.997e-05,2]
[352290190,1739029178959,500.0,9.998e-05,2]
[352290191,1739029179285,1120.1,9.997e-05,2]
[352290192,1739029183227,500.0,9.997e-05,2]
[352290193,1739029185985,2025.52,9.997e-05,2]
[352290194,1739029186090,500.0,9.997e-05,2]
[352290195,1739029190630,792.91,9.998e-05,2]
[352290196,1739029191954,500.0,9.997e-05,2]
[352290197,1739029193198,500.0,9.997e-05,2]
[352290198,1739029194553,500.0,9.997e-05,2]
[352290199,1739029196537,767.0,9.997e-05,2]
[352290200,1739029197895,875.4,9.997e-05,2]
[352290201,1739029198584,500.0,9.998e-05,2]
[352290202,1739029201316,500.0,9.997e-05,2]
[352290203,1739029204191,386.0,9.998e-05,30]
[352290204,1739029204687,386.0,0.0001063,30]
[352290205,1739029204900,386.0,0.00011261,30]
[352290206,1739029205213,386.0,0.00011893,30]
[352290207,1739029206091,386.0,0.00012525,30]
[352290208,1739029208057,556.53,9.997e-05,2]
[352290209,1739029208683,500.0,9.997e-05,2]
[352290210,1739029209441,500.0,9.997e-05,2]
[352290211,1739029210860,858.55,9.998e-05,2]
[352290212,1739029216137,802.01,9.997e-05,2]
[352290213,1739029217094,500.0,9.997e-05,2]
[352290214,1739029220232,505.41,9.997e-05,2]
[352290215,1739029221220,500.0,9.997e-05,2]
[352290216,1739029222605,500.0,9.997e-05,2]
[352290217,1739029224036,1752.31,9.997e-05,2]
[352290218,1739029225040,1269.24,9.997e-05,2]
[352290219,1739029225140,1945.16,9.997e-05,2]
[352290220,1739029226825,500.0,9.998e-05,2]
[352290221,1739029233736,1124.16,9.997e-05,2]
[352290222,1739029233773,500.0,9.997e-05,2]
[352290223,1739029237255,500.0,9.998e-05,2]
[352290224,1739029238187,500.0,9.997e-05,2]
[352290225,1739029238657,630.18,9.997e-05,2]
[352290226,1739029242867,500.0,9.997e-05,2]
[352290227,1739029244089,500.0,9.997e-05,2]
[352290228,1739029245241,500.0,9.997e-05,2]
[352290229,1739029246980,500.0,9.997e-05,2]
[352290230,1739029247653,500.0,9.998e-05,2]
[352290231,1739029251917,1401.24,9.997e-05,2]
[352290232,1739029252051,500.0,9.997e-05,2]
[352290233,1739029252563,1845.25,9.997e-05,2]
[352290234,1739029256888,500.0,9.997e-05,2]
[352290235,1739029260061,761.89,9.997e-05,2]
[352290236,1739029260463,511.31,9.997e-05,2]
[352290237,1739029261884,500.0,9.997e-05,2]
[352290238,1739029263017,1562.28,9.997e-05,2]
[352290239,1739029269348,1008.54,9.997e-05,2]
[352290240,1739029271586,500.0,9.997e-05,2]
[352290241,1739029272144,2286.12,9.997e-05,2]
[352290242,1739029273803,500.0,9.998e-05,2]
[352290243,1739029274445,500.0,9.997e-05,2]
[352290244,1739029275999,1000.0,9.997e-05,2]
[352290245,1739029281886,1802.9,9.997e-05,2]
[352290246,1739029282429,962.34,9.998e-05,2]
[352290247,1739029282845,1015.89,9.997e-05,2]
[352290248,1739029283821,835.0,9.997e-05,2]
[352290249,1739029284103,500.0,9.997e-05,2]
[352290250,1739029291680,500.0,9.998e-05,2]
[352290251,1739029293516,500.0,9.997e-05,2]
[352290252,1739029294235,500.0,9.997e-05,2]
[352290253,1739029299665,913.32,9.998e-05,2]
[352290254,1739029303496,500.0,9.997e-05,2]
[352290255,1739029304659,1619.88,9.997e-05,2]
[352290256,1739029308246,981.04,9.997e-05,2]
[352290257,1739029318237,653.27,9.997e-05,2]
[352290258,1739029322736,1855.82,9.997e-05,2]
[352290259,1739029323452,550.46,9.997e-05,2]
[352290260,1739029323811,500.0,9.997e-05,2]
[352290261,1739029325991,784.94,9.997e-05,2]
[352290262,1739029327109,500.0,9.997e-05,2]
[352290263,1739029327174,896.88,9.998e-05,2]
[352290264,1739029329283,2428.04,9.997e-05,2]
[352290265,1739029335754,500.0,9.997e-05,2]
[352290266,1739029336072,500.0,9.998e-05,2]
[352290267,1739029336445,500.0,9.997e-05,2]
[352290268,1739029338090,500.0,9.997e-05,2]
[352290269,1739029338323,500.0,9.997e-05,2]
[352290270,1739029341776,1103.73,9.997e-05,2]
[352290271,1739029343623,500.0,9.998e-05,2]
[352290272,1739029343883,500.0,9.997e-05,2]
[352290273,1739029346268,500.0,9.997e-05,2]
[352290274,1739029346375,701.03,9.997e-05,2]
[352290275,1739029346597,500.0,9.997e-05,2]
[352290276,1739029347101,500.0,9.997e-05,2]
[352290277,1739029350576,670.23,9.997e-05,2]
[352290278,1739029355300,629.45,9.997e-05,2]
[352290279,1739029356162,689.51,9.998e-05,2]
[352290280,1739029356657,1806.57,9.997e-05,2]
[352290281,1739029357053,500.0,9.997e-05,2]
[352290282,1739029357874,500.0,9.997e-05,2]
[352290283,1739029358902,1079.1,9.997e-05,2]
[352290284,1739029364649,500.0,9.997e-05,2]
[352290285,1739029367242,500.0,9.998e-05,2]
[352290286,1739029367365,500.0,9.997e-05,2]
[352290287,1739029367995,500.0,9.997e-05,2]
[352290288,1739029370155,1083.03,9.997e-05,2]
[352290289,1739029371904,500.0,9.997e-05,2]
[352290290,1739029372523,500.0,9.998e-05,2]
[352290291,1739029377830,500.0,9.998e-05,2]
[352290292,1739029378382,500.0,9.997e-05,2]
[352290293,1739029378815,500.0,9.997e-05,2]
[352290294,1739029379299,1136.38,9.997e-05,2]
[352290295,1739029382067,500.0,9.997e-05,2]
[352290296,1739029385400,500.0,9.997e-05,2]
[352290297,1739029385645,6659.71,9.997e-05,2]
[352290298,1739029386664,500.0,9.997e-05,2]
[352290299,1739029389099,985.41,9.997e-05,2]
[352290300,1739029390068,500.0,9.997e-05,2]
[352290301,1739029390102,500.0,9.997e-05,2]
[352290302,1739029399509,1378.39,9.997e-05,2]
[352290303,1739029402686,500.0,9.997e-05,2]
[352290304,1739029403955,500.0,9.997e-05,2]
[352290305,1739029404004,500.0,9.998e-05,2]
[352290306,1739029408407,1953.95,9.997e-05,2]
[352290307,1739029409019,500.0,9.997e-05,2]
[352290308,1739029410364,620.14,9.997e-05,2]
[352290309,1739029412219,500.0,9.997e-05,2]
[352290310,1739029416372,500.0,9.997e-05,2]
[352290311,1739029417439,5704.46,9.997e-05,2]
[352290312,1739029424187,782.3,9.997e-05,2]
[352290313,1739029425570,500.0,9.997e-05,2]
[352290314,1739029432065,341.18910554,9.997e-05,2]
[352290315,1739029433419,500.0,9.997e-05,2]
[352290316,1739029437461,500.0,9.998e-05,2]
[352290317,1739029437763,1073.43,9.997e-05,2]
[352290318,1739029439380,500.0,9.997e-05,2]
[352290319,1739029442530,379.68,9.997e-05,2]
[352290320,1739029445772,500.0,9.997e-05,2]
[352290321,1739029447747,500.0,9.997e-05,2]
[352290322,1739029448325,597.14,9.997e-05,2]
[352290323,1739029450523,858.23,9.997e-05,2]
[352290324,1739029452980,500.0,9.997e-05,2]
[352290325,1739029453334,500.0,9.997e-05,2]
[352290326,1739029457727,500.0,9.997e-05,2]
[352290327,1739029461443,500.0,9.997e-05,2]
[352290328,1739029461611,838.92,9.997e-05,2]
[352290329,1739029463398,503.57578717,9.997e-05,2]
[352290330,1739029464010,315.32529911,9.997e-05,2]
[352290331,1739029467393,500.0,9.997e-05,2]
[352290332,1739029474833,500.0,9.997e-05,2]
[352290333,1739029475426,500.0,9.997e-05,2]
[352290334,1739029479716,500.0,9.997e-05,2]
[352290335,1739029483124,1864.11,9.997e-05,2]
[352290336,1739029483273,851.94,9.997e-05,2]
[352290337,1739029483547,599.99700733,9.997e-05,2]
[352290338,1739029491822,684.5,9.997e-05,2]
[352290339,1739029492092,500.0,9.997e-05,2]
[352290340,1739029496619,603.93,9.997e-05,2]
[352290341,1739029504345,305.0,9.997e-05,30]
[352290342,1739029504680,305.0,0.00010629,30]
[352290343,1739029504996,305.0,0.0001126,30]
[352290344,1739029505327,500.0,9.997e-05,2]
[352290345,1739029505864,305.0,0.00011892,30]
[352290346,1739029506178,305.0,0.00012524,30]
[352290347,1739029507112,500.0,9.997e-05,2]
[352290348,1739029509600,1342.86,9.997e-05,2]
[352290349,1739029510330,500.0,9.997e-05,2]
[352290350,1739029512864,805.3,9.997e-05,2]
[352290351,1739029513130,500.0,9.997e-05,2]
[352290352,1739029518919,500.0,9.997e-05,2]
[352290353,1739029520762,1497.18,9.997e-05,2]
[352290354,1739029521589,743.27,9.997e-05,2]
[352290355,1739029524648,500.0,9.997e-05,2]
[352290356,1739029525716,500.0,9.997e-05,2]
[352290357,1739029529804,500.0,9.997e-05,2]
[352290358,1739029533312,500.0,9.997e-05,2]
[352290359,1739029535375,973.56,9.997e-05,2]
[352290360,1739029537148,500.0,9.997e-05,2]
[352290361,1739029539400,500.0,9.997e-05,2]
[352290362,1739029542321,500.0,9.997e-05,2]
[352290363,1739029547144,500.0,9.997e-05,2]
[352290364,1739029549790,500.0,9.997e-05,2]
[352290365,1739029552772,217.01707151,9.997e-05,2]
[352290366,1739029559184,500.0,9.997e-05,2]
[352290367,1739029561687,500.0,9.997e-05,2]
[352290368,1739029561879,500.0,9.997e-05,2]
[352290369,1739029567123,500.0,9.997e-05,2]
[352290370,1739029567158,500.0,9.997e-05,2]
[352290371,1739029568662,500.0,9.997e-05,2]
[352290372,1739029571135,500.0,9.997e-05,2]
[352290373,1739029571635,500.0,9.997e-05,2]
[352290374,1739029583257,500.0,9.997e-05,2]
[352290375,1739029583916,500.0,9.997e-05,2]
[352290376,1739029587454,269.04,9.477e-05,2]
[352290377,1739029601252,787.74,9.997e-05,2]
[352290378,1739029610134,500.0,9.997e-05,2]
[352290379,1739029618625,500.0,9.997e-05,2]
[352290380,1739029626767,500.0,9.997e-05,2]
[352290381,1739029634044,500.0,9.997e-05,2]
[352290382,1739029634384,500.0,9.997e-05,2]
[352290383,1739029638451,764.98,9.997e-05,2]
[352290384,1739029642197,500.0,9.997e-05,2]
[352290385,1739029644157,1000.0,9.437e-05,2]
[352290386,1739029648929,500.0,9.997e-05,2]
[352290387,1739029654090,169.55,9.717e-05,2]
[352290388,1739029674413,500.0,9.997e-05,2]
[352290389,1739029676838,500.0,9.997e-05,2]
[352290390,1739029686251,575.87,9.997e-05,2]
[352290391,1739029694950,500.0,9.997e-05,2]
[352290392,1739029707214,500.0,9.997e-05,2]
[352290393,1739029711149,1271.41,9.997e-05,2]
[352290394,1739029725524,822.78,9.997e-05,2]
[352290396,1739029738937,500.0,9.997e-05,2]
[352290397,1739029754339,500.0,9.997e-05,2]
[352290398,1739029784567,500.0,9.997e-05,2]
[352290399,1739029793037,922.24,9.997e-05,2]
[352290400,1739029801959,500.0,9.997e-05,2]
[352290401,1739029804346,236.0,9.997e-05,30]
[352290402,1739029804659,236.0,0.00010629,30]
[352290403,1739029804970,236.0,0.0001126,30]
[352290404,1739029805282,236.0,0.00011892,30]
[352290405,1739029805647,236.0,0.00012524,30]
[352290406,1739029809263,875.27,9.997e-05,2]
[352290411,1739029832787,-196.27547794,0.00010033,2]
[352290412,1739029832796,-603.06770246,0.00010034,2]
[352290413,1739029832806,-300.0,0.000101,3]
[352290414,1739029832815,-150.0,0.0001011,2]
[352290415,1739029832824,-511.77687127,0.00010133,2]
[352290416,1739029832834,-150.0,0.00010133,2]
[352290417,1739029832843,-300.0,0.00010133,2]
[352290418,1739029832853,-19277.78163533,0.00010134,2]
[352290419,1739029832864,-9327.36588936,0.00010134,2]
[352290420,1739029832873,-500.0,0.00010134,2]
[352290421,1739029832882,-500.0,0.00010134,2]
[352290422,1739029832891,-500.0,0.00010134,2]
[352290423,1739029832901,-500.0,0.00010134,2]
[352290424,1739029832910,-500.0,0.00010134,2]
[352290425,1739029832920,-500.0,0.00010134,2]
[352290426,1739029832929,-500.0,0.00010134,2]
[352290427,1739029832938,-500.0,0.00010134,2]
[352290428,1739029832952,-500.0,0.00010134,2]
[352290429,1739029832961,-500.0,0.00010134,2]
[352290430,1739029832970,-403.85562607,0.00010134,2]
[352290431,1739029832980,-500.0,0.00010134,2]
[352290432,1739029832992,-500.0,0.00010134,2]
[352290433,1739029833001,-500.0,0.00010134,2]
[352290434,1739029833011,-500.0,0.00010134,2]
[352290435,1739029833021,-500.0,0.00010134,2]
[352290436,1739029833032,-500.0,0.00010134,2]
[352290437,1739029833042,-500.0,0.00010134,2]
[352290438,1739029833051,-503.89,0.00010134,2]
[352290439,1739029833061,-500.0,0.00010134,2]
[352290440,1739029833071,-500.0,0.00010134,2]
[352290441,1739029833081,-500.0,0.00010134,2]
[352290442,1739029833090,-500.0,0.00010134,2]
[352290443,1739029833100,-500.0,0.00010134,2]
[352290444,1739029833109,-193.75208694,0.00010134,2]
[352290445,1739029833119,-500.0,0.00010134,2]
[352290446,1739029833129,-500.0,0.00010134,2]
[352290447,1739029833138,-500.0,0.00010134,2]
[352290448,1739029833147,-500.0,0.00010134,2]
[352290449,1739029833158,-500.0,0.00010134,2]
[352290450,1739029833167,-500.0,0.00010134,2]
[352290451,1739029833176,-713.34,0.00010134,2]
[352290452,1739029833185,-500.0,0.00010134,2]
[352290453,1739029833195,-1752.31,0.00010134,2]
[352290454,1739029833205,-500.0,0.00010134,2]
[352290455,1739029833214,-500.0,0.00010134,2]
[352290457,1739029833224,-500.0,0.00010134,2]
[352290459,1739029833234,-613.38,0.00010134,2]
[352290461,1739029833243,-500.0,0.00010134,2]
[352290463,1739029833252,-500.0,0.00010134,2]
[352290465,1739029833262,-761.89,0.00010134,2]
[352290467,1739029833271,-511.31,0.00010134,2]
[352290469,1739029833280,-1035.88,0.00010134,2]
[352290471,1739029833290,-530.52758283,0.00010134,2]
[352290473,1739029833299,-500.0,0.00010134,2]
[352290475,1739029833308,-500.0,0.00010134,2]
[352290476,1739029833318,-500.0,0.00010134,2]
[352290478,1739029833327,-835.0,0.00010134,2]
[352290481,1739029833337,-759.03,0.00010134,2]
[352290483,1739029833346,-500.0,0.00010134,2]
[352290485,1739029833356,-500.0,0.00010134,2]
[352290488,1739029833366,-500.0,0.00010134,2]
[352290490,1739029833375,-500.0,0.00010134,2]
[352290492,1739029833384,-500.0,0.00010134,2]
[352290494,1739029833393,-500.0,0.00010134,2]
[352290496,1739029833402,-500.0,0.00010134,2]
[352290498,1739029833411,-500.0,0.00010134,2]
[352290500,1739029833421,-653.27,0.00010134,2]
[352290502,1739029833430,-500.0,0.00010134,2]
[352290504,1739029833439,-500.0,0.00010134,2]
[352290506,1739029833449,-784.94,0.00010134,2]
[352290508,1739029833458,-500.0,0.00010134,2]
[352290510,1739029833467,-505.33,0.00010134,2]
[352290512,1739029833476,-859.56,0.00010134,2]
[352290514,1739029833486,-183.5,0.00010134,2]
[352290516,1739029833495,-500.0,0.00010134,2]
[352290541,1739029833726,-500.0,0.00010134,2]
[352290543,1739029833737,-500.0,0.00010134,2]
[352290545,1739029833746,-500.0,0.00010134,2]
[352290547,1739029833756,-500.0,0.00010134,2]
[352290549,1739029833766,-205.87415608,0.00010134,2]
[352290551,1739029833775,-193.28,0.00010134,2]
[352290553,1739029833784,-500.0,0.00010134,2]
[352290555,1739029833794,-703.97,0.00010134,2]
[352290557,1739029833804,-500.0,0.00010134,2]
[352290559,1739029833815,-313.7446587,0.00010134,2]
[352290562,1739029833828,-186.2553413,0.00010134,2]
[352290564,1739029833837,-629.45,0.00010134,2]
[352290566,1739029833848,-144.2946587,0.00010134,2]
[352290568,1739029833859,-355.7053413,0.00010134,2]
[352290570,1739029833869,-373.65095741,0.00010134,2]
[352290576,1739029833912,-126.34904259,0.00010134,2]
[352290578,1739029833922,-204.21543144,0.00010134,2]
[352290580,1739029833934,-295.78456856,0.00010134,2]
[352290581,1739029833945,-90.13529878,0.00010134,2]
[352290582,1739029833956,-409.86470122,0.00010134,2]
[352290583,1739029833965,-500.0,0.00010134,2]
[352290584,1739029833975,-500.0,0.00010134,2]
[352290585,1739029833987,-1332.38016,0.00010134,2]
[352290586,1739029833997,-500.0,0.00010134,2]
[352290587,1739029834006,-500.0,0.00010134,2]
[352290588,1739029834016,-368.98252418,0.00010134,2]
[352290589,1739029834038,-131.01747582,0.00010134,2]
[352290590,1739029834048,-500.0,0.00010134,2]
[352290591,1739029834058,-1609.166842,0.00010134,2]
[352290592,1739029834068,-500.0,0.00010134,2]
[352290593,1739029834079,-155.290179,0.00010134,2]
[352290594,1739029834089,-500.0,0.00010134,2]
[352290595,1739029834098,-500.0,0.00010134,2]
[352290596,1739029834107,-500.0,0.00010134,2]
[352290597,1739029834117,-500.0,0.00010134,2]
[352290598,1739029834127,-500.0,0.00010134,2]
[352290600,1739029834136,-768.71,0.00010134,2]
[352290602,1739029834145,-500.0,0.00010134,2]
[352290604,1739029834154,-500.0,0.00010134,2]
[352290606,1739029834164,-620.14,0.00010134,2]
[352290608,1739029834173,-500.0,0.00010134,2]
[352290610,1739029834182,-830.66,0.00010134,2]
[352290612,1739029834193,-782.3,0.00010134,2]
[352290613,1739029834204,-500.0,0.00010134,2]
[352290615,1739029834214,-500.0,0.00010134,2]
[352290617,1739029834224,-752.08,0.00010134,2]
[352290620,1739029834234,-500.0,0.00010134,2]
[352290621,1739029834245,-500.0,0.00010134,2]
[352290623,1739029834255,-710.96,0.00010134,2]
[352290626,1739029834265,-500.0,0.00010134,2]
[352290628,1739029834275,-597.14,0.00010134,2]
[352290630,1739029834285,-500.0,0.00010134,2]
[352290631,1739029834294,-500.0,0.00010134,2]
[352290633,1739029834304,-500.0,0.00010134,2]
[352290635,1739029834314,-500.0,0.00010134,2]
[352290637,1739029834324,-500.0,0.00010134,2]
[352290639,1739029834334,-500.0,0.00010134,2]
[352290641,1739029834344,-850.4,0.00010134,2]
[352290643,1739029834354,-500.0,0.00010134,2]
[352290645,1739029834364,-500.0,0.00010134,2]
[352290647,1739029834373,-500.0,0.00010134,2]
[352290649,1739029834383,-500.0,0.00010134,2]
[352290651,1739029834394,-613.28,0.00010134,2]
[352290653,1739029834404,-851.94,0.00010134,2]
[352290655,1739029834413,-500.0,0.00010134,2]
[352290657,1739029834423,-684.5,0.00010134,2]
[352290659,1739029834433,-634.16,0.00010134,2]
[352290661,1739029834443,-500.0,0.00010134,2]
[352290663,1739029834452,-500.0,0.00010134,2]
[352290665,1739029834461,-500.0,0.00010134,2]
[352290667,1739029834470,-805.3,0.00010134,2]
[352290669,1739029834479,-500.0,0.00010134,2]
[352290671,1739029834489,-784.39,0.00010134,2]
[352290673,1739029834498,-500.0,0.00010134,2]
[352290675,1739029834507,-500.0,0.00010134,2]
[352290677,1739029834517,-743.27,0.00010134,2]
[352290679,1739029834526,-500.0,0.00010134,2]
[352290680,1739029834535,-500.0,0.00010134,2]
[352290682,1739029834544,-717.02,0.00010134,2]
[352290684,1739029834554,-500.0,0.00010134,2]
[352290686,1739029834563,-500.0,0.00010134,2]
[352290688,1739029834572,-500.0,0.00010134,2]
[352290690,1739029834582,-500.0,0.00010134,2]
[352290692,1739029834591,-500.0,0.00010134,2]
[352290694,1739029834600,-822.94,0.00010134,2]
[352290696,1739029834609,-500.0,0.00010134,2]
[352290698,1739029834618,-500.0,0.00010134,2]
[352290700,1739029834627,-500.0,0.00010134,2]
[352290702,1739029834636,-681.28,0.00010134,2]
[352290704,1739029834646,-753.26,0.00010134,2]
[352290706,1739029834655,-500.0,0.00010134,2]
[352290708,1739029834664,-592.24,0.00010134,2]
[352290710,1739029834674,-500.0,0.00010134,2]
[352290712,1739029834684,-500.0,0.00010134,2]
[352290714,1739029834694,-500.0,0.00010134,2]
[352290716,1739029834703,-500.0,0.00010134,2]
[352290718,1739029834712,-1299.06,0.00010134,2]
[352290720,1739029834722,-500.0,0.00010134,2]
[352290722,1739029834731,-500.0,0.00010134,2]
[352290724,1739029834740,-699.74,0.00010134,2]
[352290726,1739029834749,-500.0,0.00010134,2]
[352290728,1739029834758,-500.0,0.00010134,2]
[352290730,1739029834767,-787.74,0.00010134,2]
[352290732,1739029834777,-715.27,0.00010134,2]
[352290734,1739029834786,-703.23131419,0.00010134,2]
[352290737,1739029834799,-224.44868581,0.00010134,2]
[352290739,1739029834809,-500.0,0.00010134,2]
[352290741,1739029834818,-500.0,0.00010134,2]
[352290743,1739029834827,-500.0,0.00010134,2]
[352290745,1739029834836,-1770.68,0.00010134,2]
[352290747,1739029834846,-1440.53,0.00010134,2]
[352290749,1739029834855,-761.98,0.00010134,2]
[352290751,1739029834864,-500.0,0.00010134,2]
[352290753,1739029834874,-819.37,0.00010134,2]